Cogmind - Beta 13 @@@ ROGUE MODE // 2024.07.03 @ 12:18:42 Player: Jazzer Result: Destroyed by 0X-UU4(R) with Subdweller Shrapnel Launcher Performance ------------- Evolutions (0) 0 Regions Visited (2) 400 Robots Destroyed (27) 135 Value Destroyed (613) 613 Prototype IDs (0) 0 Alien Tech Used (0) 0 Bonus (0) 0 TOTAL SCORE: 1148 Bonus ------- None Cogmind --------- Core Integrity 0/250 Matter 262/300 Energy 250/250 System Corruption 0% Temperature Cool (0) Movement Rolling (140) Ox4 Location -10/Subcaves Parts ------- > --- POWER (1) -------- Ion Engine > --- PROPULSION (2) --- Wheel Wheel > --- UTILITY (2) ------ Huge Storage Unit Subdweller Optics > --- WEAPON (2) ------- Subdweller Machine Gun Subdweller Machine Gun > --- INVENTORY (25) --- Subdweller Power Source Subdweller Power Source Wheel Wheel Subdweller Monowheel Heat Sink Improved Heat Sink Small Storage Unit Structural Scanner Subdweller Optics Makeshift System Restoration Module Riot Gun Particle Gun Beam Cannon Beam Cannon Subdweller Beam Cannon Light Assault Rifle Light Assault Rifle Subdweller Machine Gun Subdweller Machine Gun Slug Cannon Multitool Maul Piercing Trap Peak State ------------ > --- POWER ------------ Ion Engine > --- PROPULSION ------- Wheel Wheel > --- UTILITY ---------- Huge Storage Unit Light Armor Plating > --- WEAPON ----------- Subdweller Machine Gun Slug Cannon > --- INVENTORY -------- Subdweller Power Source Subdweller Power Source Wheel Wheel Wheel Subdweller Monowheel Heat Sink Improved Heat Sink Small Storage Unit Structural Scanner Subdweller Optics Subdweller Optics Makeshift System Restoration Module Riot Gun Particle Gun Beam Cannon Beam Cannon Subdweller Beam Cannon Light Assault Rifle Light Assault Rifle Subdweller Machine Gun Subdweller Machine Gun Multitool Maul Piercing Trap [Rating: 15] Favorites ----------- Power Ion Engine Engine Ion Engine Propulsion Wheel Wheel Wheel Utility Huge Storage Unit Device Improved Heat Sink Storage Huge Storage Unit Processor Targeting Computer Protection Light Armor Plating Weapon Subdweller Machine Gun Energy Gun Riot Gun Energy Cannon Beam Cannon Ballistic Gun Subdweller Machine Gun Ballistic Cannon Light Cannon Special Weapon Multitool Impact Weapon Maul Build | -11 -10 -10 ------- Run | Yrd Mat Sub Slots Evolved . | . . . Power . | . . . Propulsion . | . . . Utility . | . . . Weapon . | . . . Parts Attached 39 | 6 10 23 Power 2 | 1 1 . Engine 2 | 1 1 . Core . | . . . Reactor . | . . . Propulsion 7 | 2 2 3 Treads . | . . . Leg . | . . . Wheel 7 | 2 2 3 Hover . | . . . Flight . | . . . Utility 13 | 1 3 9 Device 6 | . 2 4 Storage 3 | 1 1 1 Processor 1 | . . 1 Hackware . | . . . Protection 3 | . . 3 Artifact . | . . . Weapon 17 | 2 4 11 Energy Gun 2 | . 1 1 Energy Cannon 1 | . 1 . Ballistic Gun 7 | 2 . 5 Ballistic Cannon 3 | . 1 2 Launcher . | . . . Special Weapon 1 | . . 1 Impact Weapon 3 | . 1 2 Slashing Weapon . | . . . Piercing Weapon . | . . . Special Melee Weapon . | . . . Unidentified Prototypes . | . . . Parts Lost 7 | . 4 3 Power 1 | . 1 . Propulsion 4 | . 2 2 Utility 1 | . . 1 Weapon 1 | . 1 . Highest Loss Streak 2 | . 2 2 To Critical Strikes . | . . . Average Slot Usage (%) 98 | . 97 99 Engine 14 | . 14 14 Wheel 27 | . 26 27 Device 9 | . 12 7 Storage 14 | . 14 14 Protection 3 | . . 6 Energy Gun 2 | . 1 3 Energy Cannon 2 | . . 3 Ballistic Gun 15 | . 12 17 Ballistic Cannon 6 | . 13 2 Impact Weapon 1 | . . 1 Naked Turns . | . . . Heaviest Build 96 | 13 92 96 Greatest Support 32 | 32 32 26 Greatest Overweight (x) 9 | . 5 9 Average Overweight (x) 2 | . 1 3 Largest Inventory Capacity 25 | 8 25 25 Average Capacity 21 | 7 17 24 Most Carried 25 | 5 14 25 Average Carried 15 | 2 10 21 Final Capacity 25 | 8 25 25 Final Carried 24 | 5 12 24 Class Distribution -------------------- 71% | Mutant 28% | Scavenger-Mutant Dominant Class ---------------- Mutant | -10/Materials Scavenger-Mutant | -10/Subcaves Resources | -11 -10 -10 ----------- Run | Yrd Mat Sub Matter Collected 904 | 304 317 283 Remotely . | . . . Salvage Created 648 | 92 319 237 Parts 55 | 11 29 15 Haulers Intercepted 1 | . 1 . Recyclers Shooed . | . . . Parts Field Recycled . | . . . Retrieved Matter . | . . . Parts Self-Destructed 4 | . . 4 Prevented . | . . . Kills | -11 -10 -10 ------- Run | Yrd Mat Sub Combat Hostiles Destroyed 19 | . 13 6 Guns 10 | . 7 3 Cannons 9 | . 6 3 Classes Destroyed 6 | 1 4 1 Builder 1 | . 1 . Tunneler 6 | 5 1 . Hauler 1 | . 1 . Swarmer 6 | . 6 . Grunt 7 | . 7 . Subdweller 6 | . . 6 Best Kill Streak 5 | 5 3 2 Combat Bots Only 3 | . 3 2 Max Kills in Single Turn 1 | 1 1 1 Gunslinging . | . . . Exploded . | . . . Melee . | . . . Uniques/NPCs Destroyed . | . . . Combat | -11 -10 -10 -------- Run | Yrd Mat Sub Hostile Shots Fired 96 | . 63 33 Missed 26 | . 13 13 Damage Taken 1007 | . 513 494 Core 286 | . 80 206 Absorbed by Shields . | . . . Core Remaining (%) 100 | 100 . . Volleys Fired 74 | 11 40 23 Largest 2 | 2 2 2 Hottest 100 | 40 100 95 Shots Fired 147 | 22 79 46 Gun 85 | 22 39 24 Cannon 62 | . 40 22 Launcher . | . . . Special . | . . . Kinetic 123 | 22 74 27 Thermal 16 | . 5 11 Explosive . | . . . Electromagnetic 8 | . . 8 Robot Hit Streak 18 | 9 10 18 Robot Miss Streak 6 | 2 6 2 Penetration Max . | . . . Secondary Targets 1 | . . 1 Max Gunslinging Chain 1 | . . 1 Shots Hit Robots 102 | 14 49 39 Core Hits 39 | 7 21 11 Critical Kills . | . . . Critical Parts Destroyed . | . . . Critical Strikes 3 | . 3 . Burn 2 | . 2 . Blast 1 | . 1 . Melee Attacks 3 | . 1 2 Impact 3 | . 1 2 Slashing . | . . . Piercing . | . . . Sneak Attacks . | . . . Combat Hostiles . | . . . Follow-up Attacks . | . . . Damage Inflicted 1608 | 144 787 677 Guns 827 | 144 352 331 Cannons 781 | . 435 346 Explosions . | . . . Melee . | . . . Ramming . | . . . Kinetic 1268 | 144 722 402 Thermal 242 | . 65 177 Explosive . | . . . Electromagnetic 98 | . . 98 Impact . | . . . Slashing . | . . . Piercing . | . . . Highest Corruption . | . . . Average Corruption . | . . . Corruption Purged . | . . . Corruption Blocked . | . . . Overload Shots . | . . . Overflow Damage . | . . . Projectiles . | . . . Explosions . | . . . Melee . | . . . Knockbacks 4 | . 3 1 Impact . | . . . Kinetic 4 | . 3 1 Secondary . | . . . Self-Inflicted Damage . | . . . Shots . | . . . Rammed . | . . . Targets Rammed . | . . . Kicked . | . . . Crushed . | . . . Highest Temperature 11 | . 11 . Average Temperature 5 | . 5 . Received Heat Transfer 141 | . 99 42 Siege Activations . | . . . Robots Corrupted . | . . . Combat Hostiles . | . . . Parts Fried 1 | . . 1 Impact Corruptions . | . . . Robots Melted . | . . . Combat Hostiles . | . . . Parts Melted 1 | . 1 . Heat Transferred 666 | . 296 370 Parts Sabotaged . | . . . Parts Stolen . | . . . Parts Stripped . | . . . Power Chain Reactions . | . . . Alert | -11 -10 -10 ------- Run | Yrd Mat Sub Peak Influence 279 | 25 279 . Initial 16 | . 16 . Average 108 | 9 122 . Maximum Alert Level 1 | . 1 . Low Security (%) 77 | 100 74 . Level 1 22 | . 25 . Level 2 . | . . . Level 3 . | . . . Level 4 . | . . . Level 5 . | . . . High Security . | . . . Max Security . | . . . Squads Dispatched 3 | . 3 . Investigation . | . . . Extermination . | . . . Reinforcement 3 | . 3 . Assault . | . . . Garrison . | . . . Intercept . | . . . Searches Triggered . | . . . Construction Impeded . | . . . Haulers Reinforced . | . . . Active Scanning Responses . | . . . Cargo Convoy Interrupts . | . . . Stealth | -11 -10 -10 --------- Run | Yrd Mat Sub Distress Signals 2 | . 2 . Communications Jammed . | . . . Distress Signals . | . . . Times Spotted 30 | . 23 7 Peak Tracking Total 5 | . 5 2 Tactical Retreats . | . . . Traps | -11 -10 -10 ------- Run | Yrd Mat Sub Traps Triggered . | . . . Indirectly . | . . . Trap Hack Attempts . | . . . Triggered . | . . . Disarmed . | . . . Reprogrammed . | . . . Reused . | . . . Traps Extracted . | . . . Installed . | . . . Triggered . | . . . Most Traps Carried 1 | . . 1 Machines | -11 -10 -10 ---------- Run | Yrd Mat Sub Machines Disabled . | . . . Max in Single Turn . | . . . Machines Repaired . | . . . Machines Dismantled . | . . . Machines Sabotaged . | . . . Overloaded Fab Kills . | . . . Hacking | -11 -10 -10 --------- Run | Yrd Mat Sub Machines Accessed 6 | . 6 . Terminals 6 | . 6 . Fabricators . | . . . Repair Stations . | . . . Recycling Units . | . . . Scanalyzers . | . . . Garrison Access . | . . . Total Hacks 18 | . 18 . Successful 8 | . 8 . Failed 10 | . 10 . Catastrophic 1 | . 1 . Database Lockouts . | . . . Manual 14 | . 14 . Terminals 18 | . 18 . Fabricators . | . . . Repair Stations . | . . . Recycling Units . | . . . Scanalyzers . | . . . Garrison Access . | . . . Terminal Hacks 4 | . 4 . Robot Analysis 1 | . 1 . Terminal Index 1 | . 1 . Unreport Threat 1 | . 1 . Locate Traps 1 | . 1 . Fabricator Hacks . | . . . Repair Station Hacks . | . . . Recycling Unit Hacks . | . . . Scanalyzer . | . . . Garrison Access Hacks . | . . . Unauthorized Hacks 4 | . 4 . Terminals 4 | . 4 . Botnet 4 | . 4 . Fabricators . | . . . Repair Stations . | . . . Recycling Units . | . . . Scanalyzers . | . . . Garrison Access . | . . . Data Cores Recovered . | . . . Used . | . . . Hacking Detections 4 | . 4 . Full Trace Events 1 | . 1 . Feedback Events . | . . . Feedback Blocked . | . . . Robot Schematics Acquired . | . . . Robots Built . | . . . Authchips . | . . . Time . | . . . Total Robot Build Rating . | . . . Part Schematics Acquired . | . . . Parts Built . | . . . Authchips . | . . . Time . | . . . Total Part Build Rating . | . . . Parts Repaired . | . . . Time . | . . . Parts Recycled . | . . . Recycled Matter . | . . . Retrieved Matter . | . . . Retrieved Components . | . . . Parts Scanalyzed . | . . . Part Schematics Acquired . | . . . Parts Damaged . | . . . Bothacking | -11 -10 -10 ------------ Run | Yrd Mat Sub Used RIF Installer . | . . . Robots Hacked . | . . . Non-combat . | . . . Combat . | . . . Robot Hacks Applied . | . . . Relay Couplers Released . | . . . Fabnet Peak Effective % . | . . . Robots Rewired . | . . . Allies Hacked . | . . . Hacks Repelled . | . . . Allies | -11 -10 -10 -------- Run | Yrd Mat Sub Total Allies . | . . . Largest Group . | . . . Highest-Rated Group . | . . . Highest-Rated Ally . | . . . Total Orders . | . . . Ally Attacks . | . . . Total Damage . | . . . Kills . | . . . Allies Corrupted . | . . . Allies Melted . | . . . Intel | -11 -10 -10 ------- Run | Yrd Mat Sub Robot Analysis Total 1 | . 1 . Derelict Logs Recovered 1 | . . 1 Drone Launches . | . . . Drone Recoveries . | . . . Exploration | -11 -10 -10 ------------- Run | Yrd Mat Sub Turns Passed 2439 | 140 979 1320 Spaces Moved 1460 | 93 526 841 Core 4 | 4 . . Treads . | . . . Legs . | . . . Wheels 1456 | 89 526 841 Hover . | . . . Flight . | . . . Fastest Speed 50 | 50 90 80 Average Speed 128 | 97 117 139 Slowest Speed 215 | 100 175 215 Overloaded Moves . | . . . Propulsion Burnouts . | . . . Robots Hopped . | . . . Cave-ins Triggered . | . . . Exploration Rate (%) 52 | 5 91 61 Regions Visited 2 Branch Regions 1 Pre-discovered Areas 1 | . . 1 Known Exits Taken . | . . . Unknown Exits Taken 2 | 1 1 . Scrap Searched 5 | . . 5 Spaces Dug 1 | . 1 . Terrain Destroyed 1 | . 1 . Melee 1 | . 1 . Projectile . | . . . AOE . | . . . Terrain Rammed . | . . . Walls Destroyed . | . . . Machines Disabled . | . . . Actions | -11 -10 -10 --------- Run | Yrd Mat Sub Total 1860 | 119 809 932 Wait 235 | 4 216 15 Move 1458 | 92 525 841 Hop . | . . . Pick Up 43 | 6 13 24 Fast Attach 8 | 5 1 2 Attach 8 | 1 4 3 Detach 1 | . . 1 Swap 23 | . 5 18 Drop 7 | . 4 3 Fire 74 | 11 40 23 Melee 3 | . 1 2 Ram . | . . . Kick . | . . . Crush . | . . . Escape Stasis . | . . . Rewire . | . . . Trap . | . . . Miscellaneous . | . . . Route ------- -11/Scrapyard -10/Materials (discovered 5 exits: [*Mat x3] / [*Min] / [*Sub]) -10/Subcaves History --------- Turn | Location | Event 11 | -11/Scrapyard | Discovered new exit (range 15) 141 | -11/Scrapyard | Entered Materials 215 | -10/Materials | Discovered new exit (range 12) 316 | -10/Materials | Build established: Mutant 516 | -10/Materials | Discovered new exit (range 16) 858 | -10/Materials | Discovered new exit (range 11) 941 | -10/Materials | Derelicts attacked the area 981 | -10/Materials | Discovered new exit (range 11) 1104 | -10/Materials | Discovered new exit (range 9) 1120 | -10/Materials | Entered Subcaves 1125 | -10/Subcaves | Learned location of Zion (-7) 1744 | -10/Subcaves | Build established: Scavenger-Mutant 1767 | -10/Subcaves | Shifting Twisted Machinery released Mak. System Restoration Module 1785 | -10/Subcaves | Shifting Twisted Machinery released Riot Gun 1983 | -10/Subcaves | Disturbed a concealed Subdweller 2290 | -10/Subcaves | Core integrity fell below 50% 2296 | -10/Subcaves | Build established: Mutant 2390 | -10/Subcaves | Shifting Twisted Machinery released Battle Rifle 2409 | -10/Subcaves | Shifting Twisted Machinery released Piercing Trap 2439 | -10/Subcaves | Core integrity fell below 20% 2440 | -10/Subcaves | Destroyed by 0X-UU4(R) with Subdweller Shrapnel Launcher Last Messages --------------- 02078_ Acquired 8 matter. 02082_ K1-3H9(O) collects matter. 02086_ Acquired 8 matter. 02134_ K1-3H9(O) puts together Flamer. 02147_ K1-3H9(O) collects matter. 02280_ 0T-P85(R) misfires. 02286_ Wheel destroyed. 02290_ 0T-P85(R) misfires. 02291_ Lgt. Armor Plating destroyed. 02292_ Sub. Laser fried. 02292_ 0T-P85(R) destroyed. 02292_ Switching to secondary target: 8W-QW9(R). 02298_ 8W-QW9(R) destroyed. 02306_ Acquired 26 matter. 02311_ Acquired Sub. Machine Gun. 02322_ K1-3H9(O) collects matter. 02324_ K1-3H9(O) puts together Sub. Power Source. 02364_ K1-3H9(O) puts together Battle Rifle. Battle Rifle falls loose from the Twisted Machinery. Piercing Trap falls loose from the Twisted Machinery. Map ----- +----------------------------------------------------+ | ## ###### # ##### #???????## [ #????????? | | ####????######???#####????????# #????????? | | #???????????????????????????## ### #????????? | | ##???????????????????????##### ##??###????????? | | #???????????????????????## ## #??????????????? | | #??????????????????????## #??????????????? | | #?????????????????????# ##??????????????? | | #????????????????????## #???????????????? | | #???????????????????## ##########??????? | | ##???????????????????# # #??????? | | #???????????????????# ##### #??????? | | #???????????????????# #???## #??????? | | ????????????????????### ## #????# #??????? | | ??????????????????????##"" #### ##???# #??????? | | ???????????????????????# " #??# #???# #??????? | | ???????????????????????##" ##??# # ##### #??????? | | ????????????????????????#"#????## # #??????? | | ????????????????????????##?###### ###??????? | | ??????????????????????????## #???????? | | ??????????????????????????# " #???????? | | ????????????????????????### ##" " #??????? | | ???????????????????????##; ;### "## #?????? | | ??????????????????????##; #??###[## #?????? | | ?????????????????????## ; ;#????### #?????? | | ?????????????????????# ;; O;#??????? #?????? | | ??????????????????????#; @ ;#??????? ####?????? | | ??????????????????????#; ;#?????? #????????? | | ?????????????????????" ;#??????# #????????? | | ???????????????????"" ;#??????# #????????? | | ????????????????? " #; ; #??????## ????????? | | ???????????????? ##### ##???????# ????????? | | ???????????????# ?????# ##???????? ????????? | | ???????????????## ?????? R#?????????# ????????? | | ????????????????#??????? ????????? ##???????? | | ???????????????????????? ????????? ????????? | | ???????????????????????? ###????????? ????????? | | ???????????????????????? ???????????? ????????? | | ????????????????????????#???????????? ????????? | | ?????????????????????????????????????? " ????????? | | ?????????????????????????????????????????????????? | | ?????????????????????????????????????????????????? | | ?????????????????????????????????????????????????? | | ?????????????????????????????????????????????????? | | ?????????????????????????????????????????????????? | | ?????????????????????????????????????????????????? | | ?????????????????????????????????????????????????? | | ?????????????????????????????????????????????????? | | ?????????????????????????????????????????????????? | | ?????????????????????????????????????????????????? | | ?????????????????????????????????????????????????? | +----------------------------------------------------+ Best States ------------- Heat Dissipation 39 Energy Generation 10 Energy Capacity 250 Matter Stores 300 Matter Capacity 300 Sight Range 21 Terrain Scan Density 10 Armor Coverage 150 Evasion (%) 42 Targeting Accuracy 5 Item Schematics ----------------- None Robot Schematics ------------------ None Fabricated ------------ Nothing Alien Tech Used ----------------- None Achievements -------------- None Challenges ------------ None Game ------ Seed GravmagGunReplicator Manual? 0 Play Time 00:29:17 Cumulative 302.3 hours Start 2024.07.03 @ 11:51:32 End 2024.07.03 @ 12:18:42 Sessions 1 Manual Loads 0 Difficulty Rogue Special Mode None Game No. 175 Rogue 175 Adventurer 0 Explorer 0 Win Type - Total 2 Types 2/0/0/0/0/0/0/0/0 Lore% 53 Gallery% 63 Achievement% 39 Wizard Run 0 Options --------- Layout 0 ASCII 0 Keyboard 1 Movement Numpad Keybinds 0 Fullscreen 2 Font 18/SmallcapsGlow Map View 76x50 Zoom Use 0% Tactical HUD 1 Map Filters NONE Filters NONE Steam 1 RUN: a35e6543-aa67-4bd8-b657-23652cd5cad3